bitfinex/quotes_SOLUSD_20250814
["timestamp","ask_amount","ask_price","bid_price","bid_amount"]
[1755140359474,19.44296004,207.31,207.29,40.44]
[1755140359879,0.69,207.34,207.29,40.44]
[1755140360108,20.13296004,207.34,207.29,40.44]
[1755140360788,19.44296004,207.35,207.29,40.44]
[1755140361091,19.44296004,207.34,207.29,40.44]
[1755140361404,4.82135308,207.42,207.29,40.44]
[1755140361405,2.5120181,207.46,207.3,20.16296004]
[1755140361596,19.44296004,207.39,207.31,19.44296004]
[1755140361986,19.44296004,207.38,207.3,20.16296004]
[1755140362704,19.44296004,207.32,207.25,0.72]
[1755140362882,19.44296004,207.34,207.27,19.44296004]
[1755140363085,19.44296004,207.34,207.27,20.16296004]
[1755140363286,19.44296004,207.35,207.27,0.72]
[1755140363490,19.44296004,207.34,207.27,0.72]
[1755140364210,19.44296004,207.34,207.27,20.16296004]
[1755140365101,19.44296004,207.34,207.29,34.66]
[1755140365291,20.13296004,207.34,207.29,34.66]
[1755140365486,20.13296004,207.33,207.29,34.66]
[1755140366105,19.44296004,207.32,207.3,40.4]
[1755140366620,19.44296004,207.31,207.3,40.4]
[1755140366791,20.13296004,207.31,207.3,40.4]
[1755140367687,20.13296004,207.31,207.22,20.16296004]
[1755140367922,19.44296004,207.28,207.23,40.38]
[1755140368209,19.44296004,207.29,207.23,40.38]
[1755140368414,19.44296004,207.28,207.23,40.38]
[1755140369290,20.13296004,207.27,207.23,40.38]
[1755140369490,19.44296004,207.24,207.17,0.72]
[1755140369704,19.44296004,207.23,207.18,40.36]
[1755140369911,19.44296004,207.28,207.2,19.44296004]
[1755140370102,20.13296004,207.3,207.23,19.44296004]
[1755140370288,20.13296004,207.3,207.24,40.36]
[1755140370492,12.05225859,207.43,207.24,40.36]
[1755140370493,19.44296004,207.26,207.24,40.36]
[1755140370691,0.7,207.31,207.25,40.36]
[1755140371025,19.44296004,207.3,207.26,40.36]
[1755140371898,20.14296004,207.3,207.26,40.36]
[1755140372409,19.14296004,207.3,207.26,40.36]
[1755140372805,13.54496853,207.3,207.26,40.36]
[1755140373009,12.84496853,207.28,207.26,40.36]
[1755140373195,13.54496853,207.28,207.26,40.36]
[1755140374416,0.7,207.28,207.26,40.36]
[1755140374789,22.05283964,207.42,207.26,40.36]
[1755140374790,12.84496853,207.27,207.26,40.36]
[1755140374994,12.84496853,207.27,207.26,109.68]
[1755140375395,12.84496853,207.28,207.26,109.68]
[1755140375702,13.54496853,207.27,207.26,109.68]
[1755140376017,13.54496853,207.27,207.26,40.36]
[1755140380815,18.36959341,207.27,207.26,40.36]
[1755140381903,13.54496853,207.27,207.26,40.36]
[1755140382209,18.36959341,207.27,207.26,40.36]
[1755140383329,18.36959341,207.27,207.13,0.65]
[1755140383497,12.84496853,207.15,207.13,0.65]
[1755140383701,12.84496853,207.14,207.08,0.65]
[1755140383901,12.84496853,207.12,207.08,0.65]
[1755140384118,12.84496853,207.13,207.09,0.65]
[1755140384303,12.84496853,207.14,207.1,0.65]
[1755140384504,0.7,207.18,207.11,40.93]
[1755140384705,12.84496853,207.14,207.11,40.93]
[1755140384919,12.84496853,207.15,207.12,35.33]
[1755140385607,0.7,207.21,207.12,35.33]
[1755140385809,12.84496853,207.15,207.11,40.28]
[1755140386131,12.84496853,207.14,207.12,0.65]
[1755140386425,12.84496853,207.15,207.12,0.65]
[1755140386924,12.84496853,207.14,207.12,0.65]
[1755140387724,5.52604658,207.21,207.06,12.84496853]
[1755140387725,12.84496853,207.13,207.06,12.84496853]
[1755140387928,10.0,207.28,207.07,40.91]
[1755140387929,0.7,207.18,207.07,40.91]
[1755140388115,0.7,207.18,207.08,40.91]
[1755140388116,12.84496853,207.14,207.08,40.91]
[1755140388305,12.84496853,207.09,206.98,2.45487123]
[1755140388507,12.84496853,207.0,206.98,2.45487123]
[1755140388836,0.7,207.08,206.98,2.45487123]
[1755140388837,12.84496853,207.01,206.99,40.24]
[1755140389019,12.84496853,207.0,206.99,40.24]
[1755140389524,13.54496853,207.0,206.99,40.24]
[1755140389717,12.84496853,207.0,206.99,40.24]
[1755140390529,12.84496853,207.02,206.99,40.24]
[1755140390706,12.84496853,207.0,206.99,40.24]
[1755140392823,13.54496853,207.0,206.78,10.0]
[1755140393032,12.84496853,206.91,206.87,0.65]
[1755140393216,12.84496853,206.91,206.88,40.22]
[1755140393411,14.82900603,207.09,206.9,12.84496853]
[1755140393609,12.84496853,207.0,206.91,0.65]
[1755140393816,12.84496853,206.99,206.91,0.65]
[1755140394031,12.84496853,206.92,206.86,0.65]
[1755140394239,12.84496853,206.9,206.86,0.65]
[1755140394539,12.84496853,206.96,206.87,40.87]
[1755140394842,12.84496853,206.94,206.88,40.22]
[1755140395043,12.84496853,206.93,206.9,34.7]
[1755140395546,12.84496853,206.91,206.9,34.7]
[1755140395712,12.84496853,206.91,206.84,0.65]
[1755140395912,12.84496853,206.91,206.85,53.04496853]
[1755140396113,12.84496853,206.92,206.85,53.04496853]
[1755140396310,12.84496853,206.93,206.86,12.84496853]
[1755140396524,12.84496853,206.92,206.85,53.04496853]
[1755140396930,0.7,206.92,206.72,12.84496853]
[1755140397116,12.84496853,206.9,206.83,12.84496853]
[1755140397438,12.84496853,206.92,206.86,12.84496853]
[1755140397642,12.84496853,206.91,206.87,40.2]
[1755140398140,12.84496853,206.92,206.85,12.84496853]
[1755140398442,12.84496853,206.91,206.86,40.2]
[1755140398838,12.84496853,206.89,206.75,2.37914238]
[1755140399146,34.9202379,207.04,206.73,0.65]
[1755140399147,12.84496853,206.8,206.73,0.65]
[1755140399353,12.84496853,206.8,206.73,13.49496853]
[1755140399516,12.84496853,206.8,206.66,3.90102306]
[1755140399517,0.7,206.84,206.75,12.84496853]
[1755140399835,12.84496853,206.81,206.76,40.18]
[1755140400140,12.84496853,206.84,206.77,13.49496853]
[1755140400443,12.07671126,207.01,206.66,13.90102306]
[1755140400444,0.72,206.85,206.74,0.7]
[1755140400616,12.84496853,206.82,206.75,53.04496853]
[1755140400818,12.84496853,206.83,206.76,12.84496853]
[1755140401050,4.83280562,206.92,206.74,0.7]
[1755140401221,12.84496853,206.77,206.75,40.18]
[1755140401427,0.72,206.77,206.67,0.7]
[1755140401626,12.84496853,206.76,206.69,12.84496853]
[1755140401821,12.84496853,206.88,206.67,0.7]
[1755140401822,13.56496853,206.77,206.7,53.02496853]
[1755140402015,13.56496853,206.77,206.7,40.18]
[1755140402218,13.56496853,206.77,206.67,0.7]
[1755140402219,12.84496853,206.75,206.62,2.51584568]
[1755140402439,12.84496853,206.7,206.63,12.84496853]
[1755140402656,4.83395369,206.87,206.63,12.84496853]
[1755140402657,0.72,206.72,206.63,12.84496853]
[1755140402942,0.72,206.72,206.64,40.18]
[1755140403118,12.84496853,206.73,206.63,0.7]
[1755140403452,48.21361856,207.42,206.56,12.84496853]
[1755140403453,12.84496853,206.65,206.56,0.7]
[1755140403739,0.72,206.66,206.59,12.84496853]
[1755140403940,24.56576088,206.89,206.59,12.84496853]
[1755140403941,0.72,206.7,206.63,12.84496853]
[1755140404149,13.56496853,206.74,206.66,12.84496853]
[1755140404335,13.56496853,206.74,206.63,0.7]
[1755140404527,0.72,206.78,206.73,12.84496853]
[1755140404729,0.72,206.82,206.76,12.84496853]
[1755140404947,13.56496853,206.9,206.81,47.56496853]
[1755140405147,13.56496853,206.9,206.83,12.84496853]
[1755140405525,0.72,206.94,206.86,12.84496853]
[1755140405847,0.72,206.94,206.39,28.83]
[1755140405848,12.84496853,206.94,206.85,0.7]
[1755140406149,12.84496853,206.86,206.76,0.7]
[1755140406347,3.85847474,207.0,206.56,12.84496853]
[1755140406348,12.84496853,206.79,206.72,0.7]
[1755140406552,12.84496853,206.77,206.73,40.18]
[1755140406743,24.56191426,206.96,206.73,40.18]
[1755140406744,0.72,206.86,206.76,19.57214976]
[1755140407047,0.72,206.86,206.77,59.75214976]
[1755140407219,19.57214976,206.85,206.78,19.57214976]
[1755140407622,19.57214976,206.79,206.56,10.0]
[1755140407932,4.83356839,206.89,206.71,0.7]
[1755140407933,19.57214976,206.76,206.71,0.7]
[1755140408124,19.57214976,206.75,206.72,40.16]
[1755140408326,19.57214976,206.75,206.73,40.16]
[1755140408843,19.57214976,206.74,206.64,19.57214976]
[1755140409024,14.83351149,206.89,206.51,2.51890856]
[1755140409025,19.57214976,206.65,206.58,0.7]
[1755140409225,0.72,206.67,206.55,0.7]
[1755140409444,19.57214976,206.62,206.56,40.16]
[1755140409825,19.57214976,206.6,206.55,0.7]
[1755140410046,19.57214976,206.61,206.57,40.16]
[1755140410348,19.57214976,206.62,206.57,40.86]
[1755140410845,0.72,206.78,206.61,19.57214976]
[1755140411023,0.72,206.78,206.67,19.57214976]
[1755140411024,19.57214976,206.74,206.67,19.57214976]
[1755140411219,19.57214976,206.73,206.66,19.57214976]
[1755140411529,19.57214976,206.7,206.67,40.16]
[1755140411744,19.57214976,206.75,206.67,59.73214976]
[1755140411945,19.57214976,206.75,206.68,19.57214976]
[1755140412248,19.57214976,206.74,206.69,40.16]
[1755140412449,13.89989072,206.88,206.7,19.57214976]
[1755140412450,20.29214976,206.78,206.7,19.57214976]
[1755140412752,19.57214976,206.77,206.71,40.14]
[1755140413330,8.6615995,206.9,206.72,19.57214976]
[1755140413529,19.57214976,206.81,206.73,19.57214976]
[1755140413728,19.57214976,206.8,206.73,19.57214976]
[1755140413924,19.57214976,206.8,206.71,40.14]
[1755140413925,19.57214976,206.74,206.71,40.14]
[1755140414244,19.57214976,206.72,206.56,211.4]
[1755140414440,19.57214976,206.72,206.52,400.2]
[1755140414441,19.57214976,206.6,206.52,0.7]
[1755140414635,19.57214976,206.6,206.53,19.57214976]
[1755140414837,19.57214976,206.6,206.53,40.14]
[1755140415148,19.57214976,206.6,206.53,19.57214976]
[1755140415352,0.72,206.59,206.54,69.52]
[1755140415533,19.57214976,206.56,206.55,40.14]
[1755140415734,0.72,206.58,206.55,40.14]
[1755140415929,19.57214976,206.56,206.47,0.7]
[1755140416125,19.57214976,206.55,206.48,59.71214976]
[1755140416368,19.57214976,206.59,206.52,19.57214976]
[1755140416836,0.72,206.61,206.52,19.57214976]
[1755140417155,19.57214976,206.6,206.52,19.57214976]
[1755140417326,19.57214976,206.55,206.41,211.4]
[1755140417531,4.83769532,206.71,206.46,19.57214976]
[1755140417532,19.57214976,206.53,206.46,19.57214976]
[1755140418239,19.57214976,206.53,206.33,3.89114439]
[1755140418240,19.57214976,206.51,206.44,19.57214976]
[1755140418561,19.57214976,206.53,206.47,40.14]
[1755140418766,19.57214976,206.48,206.38,0.7]
[1755140419065,19.57214976,206.48,206.41,19.57214976]
[1755140420174,20.29214976,206.47,206.33,3.2216783]
[1755140420380,12.09972231,206.62,206.43,19.57214976]
[1755140420381,0.72,206.51,206.43,19.57214976]
[1755140420582,19.57214976,206.49,206.44,40.12]
[1755140420755,14.83980253,206.62,206.38,19.57214976]
[1755140420756,19.57214976,206.45,206.38,19.57214976]
[1755140420949,19.57214976,206.44,206.39,40.12]
[1755140421292,19.57214976,206.4,206.32,0.7]
[1755140421581,19.57214976,206.38,206.33,40.12]
[1755140421765,19.57214976,206.38,206.31,19.57214976]
[1755140422072,0.72,206.38,206.31,19.57214976]
[1755140422277,19.57214976,206.37,206.32,40.12]
[1755140422455,20.29214976,206.38,206.32,40.12]
[1755140422646,19.57214976,206.33,206.3,50.02]
[1755140422850,20.29214976,206.33,206.3,50.02]
[1755140423063,0.72,206.37,206.31,40.12]
[1755140423268,19.57214976,206.36,206.31,40.12]
[1755140423475,19.57214976,206.39,206.33,19.57214976]
[1755140423674,19.57214976,206.38,206.31,59.69214976]
[1755140423877,19.57214976,206.39,206.32,19.57214976]
[1755140424082,19.57214976,206.39,206.33,40.12]
[1755140424384,0.72,206.4,206.32,19.57214976]
[1755140424385,0.72,206.4,206.34,40.12]
[1755140424675,19.57214976,206.42,206.34,40.12]
[1755140424851,0.72,206.41,206.35,40.12]
[1755140425052,20.29214976,206.41,206.36,69.6]
[1755140425352,0.72,206.41,206.36,69.6]
[1755140425561,0.72,206.46,206.38,19.57214976]
[1755140425768,0.72,206.46,206.36,35.5]
[1755140425769,0.72,206.46,206.4,19.57214976]
[1755140426074,19.57214976,206.48,206.41,59.69214976]
[1755140426272,19.57214976,206.47,206.41,40.12]
[1755140426450,19.57214976,206.48,206.41,19.57214976]
[1755140426655,19.57214976,206.48,206.3,60.02]
[1755140426656,19.57214976,206.52,206.44,19.57214976]
[1755140426857,19.57214976,206.52,206.45,40.12]
[1755140427051,19.57214976,206.52,206.45,59.69214976]
[1755140427251,0.72,206.53,206.45,59.69214976]
[1755140427456,19.57214976,206.52,206.45,59.69214976]
[1755140428058,19.57214976,206.53,206.46,19.57214976]
[1755140428271,19.57214976,206.52,206.45,40.12]
[1755140428477,19.57214976,206.52,206.45,59.69214976]
[1755140428884,19.57214976,206.5,206.45,40.12]
[1755140429179,19.57214976,206.48,206.45,40.12]
[1755140429364,0.72,206.53,206.45,59.69214976]
[1755140429681,19.57214976,206.51,206.45,40.12]
[1755140430374,20.23214976,206.51,206.45,40.12]
[1755140430563,0.66,206.51,206.43,19.57214976]
[1755140430772,19.57214976,206.5,206.43,19.57214976]
[1755140430980,0.66,206.51,206.45,19.57214976]
[1755140431169,19.57214976,206.47,206.36,0.65]
[1755140431368,10.0,206.62,206.43,19.57214976]
[1755140431369,0.66,206.49,206.43,19.57214976]
[1755140431571,0.66,206.49,206.44,59.67214976]
[1755140431963,19.57214976,206.51,206.44,59.67214976]
[1755140432163,19.57214976,206.5,206.44,40.1]
[1755140432366,19.57214976,206.51,206.44,59.67214976]
[1755140432766,19.57214976,206.51,206.45,40.1]
[1755140432969,0.66,206.52,206.4,0.65]
[1755140433284,19.57214976,206.5,206.43,19.57214976]
[1755140433581,0.66,206.49,206.43,19.57214976]
[1755140433887,0.66,206.49,206.44,19.57214976]
[1755140434061,19.57214976,206.52,206.45,19.57214976]
[1755140434387,19.57214976,206.49,206.42,19.57214976]
[1755140434561,0.66,206.51,206.44,19.57214976]
[1755140434769,0.66,206.51,206.46,19.57214976]
[1755140434975,0.66,206.55,206.5,19.57214976]
[1755140435291,0.66,206.58,206.53,19.57214976]
[1755140435473,0.66,206.57,206.54,40.08]
[1755140435674,0.66,206.63,206.56,19.57214976]
[1755140435889,20.23214976,206.63,206.54,40.73]
[1755140436085,20.23214976,206.63,206.56,19.57214976]
[1755140436270,0.66,206.63,206.59,19.57214976]
[1755140436583,19.57214976,206.63,206.54,0.65]
[1755140436775,6.15388683,206.73,206.59,19.57214976]
[1755140436967,0.66,206.66,206.48,10.0]
[1755140437167,19.57214976,206.63,206.56,19.57214976]
[1755140437391,19.57214976,206.61,206.57,40.08]
[1755140437590,19.57214976,206.62,206.58,40.08]
[1755140437778,20.23214976,206.62,206.58,40.08]
[1755140438102,0.66,206.61,206.58,40.08]
[1755140438299,19.57214976,206.63,206.58,40.08]
[1755140438622,19.57214976,206.65,206.58,59.65214976]
[1755140438779,19.57214976,206.63,206.58,40.08]
[1755140439490,3.86540506,206.74,206.58,59.65214976]
[1755140439491,19.57214976,206.65,206.58,59.65214976]
[1755140439701,19.57214976,206.59,206.51,0.65]
[1755140439995,19.57214976,206.58,206.52,40.06]
[1755140440173,0.66,206.61,206.53,19.57214976]
[1755140440375,19.57214976,206.6,206.53,19.57214976]
[1755140440575,19.57214976,206.59,206.52,59.63214976]
[1755140441093,19.57214976,206.6,206.53,19.57214976]
[1755140441271,19.57214976,206.57,206.52,40.06]
[1755140441800,19.57214976,206.58,206.52,40.06]
[1755140442388,19.57214976,206.56,206.53,40.04]
[1755140442881,19.57214976,206.57,206.53,40.04]
[1755140443083,19.57214976,206.58,206.53,40.04]
[1755140443502,0.66,206.59,206.53,40.04]
[1755140443503,20.23214976,206.59,206.53,40.04]
[1755140444005,19.57214976,206.59,206.53,40.04]
[1755140444306,19.57214976,206.72,206.41,232.9]
[1755140444307,19.57214976,206.54,206.45,0.65]
[1755140444512,19.57214976,206.52,206.46,40.02]
[1755140444812,19.57214976,206.52,206.46,59.59214976]
[1755140444987,19.57214976,206.52,206.47,69.6]
[1755140445404,19.57214976,206.5,206.47,69.6]
[1755140445610,19.57214976,206.48,206.47,34.8]
[1755140445789,19.57214976,206.48,206.46,40.02]
[1755140446126,19.57214976,206.47,206.46,40.02]
[1755140446482,19.57214976,206.48,206.46,40.02]
[1755140449124,19.57214976,206.47,206.46,40.02]
[1755140449288,20.23214976,206.47,206.46,40.02]
[1755140449494,19.57214976,206.47,206.46,40.02]
[1755140449706,20.23214976,206.47,206.46,40.02]
[1755140450107,19.57214976,206.47,206.46,40.02]
[1755140450500,20.23214976,206.47,206.46,40.02]
[1755140450698,19.57214976,206.47,206.46,40.02]
[1755140451131,0.66,206.5,206.46,40.02]
[1755140451418,4.84108689,206.57,206.46,40.02]
[1755140451419,19.63025858,206.47,206.46,40.02]
[1755140452106,4.84122709,206.56,206.46,40.02]
[1755140452305,19.63025858,206.47,206.46,40.02]
[1755140452927,20.29025858,206.47,206.32,0.65]
[1755140453131,0.66,206.46,206.33,40.63]
[1755140453327,19.63025858,206.4,206.33,40.63]
[1755140453512,19.63025858,206.39,206.33,40.63]
[1755140453699,0.66,206.43,206.33,40.63]
[1755140453901,19.63025858,206.4,206.33,40.63]
[1755140454204,19.63025858,206.41,206.33,40.63]
[1755140454535,19.63025858,206.42,206.33,40.63]
[1755140454825,19.63025858,206.45,206.34,0.65]
[1755140455120,24.03193158,206.62,206.36,34.8]
[1755140455121,24.47229927,206.53,206.36,34.8]
[1755140455328,19.63025858,206.41,206.36,34.8]
[1755140455622,19.63025858,206.38,206.36,34.8]
[1755140455797,19.63025858,206.39,206.36,34.8]
[1755140456298,24.47229927,206.53,206.36,34.8]
[1755140456503,19.63025858,206.42,206.36,34.8]
[1755140456719,19.63025858,206.41,206.33,39.98]
[1755140456898,19.63025858,206.4,206.33,39.98]
[1755140457103,19.63025858,206.41,206.33,39.98]
[1755140457709,19.63025858,206.4,206.33,39.98]
[1755140458627,19.63025858,206.37,206.34,39.94]
[1755140458826,19.63025858,206.38,206.34,39.94]
[1755140459016,19.63025858,206.36,206.34,39.94]
[1755140459212,0.66,206.41,206.34,39.94]
[1755140459518,19.63025858,206.39,206.34,39.94]
[1755140460118,19.63025858,206.37,206.34,39.94]
[1755140460333,19.63025858,206.35,206.34,39.94]
[1755140460534,19.63025858,206.41,206.34,39.94]
[1755140460834,12.95517695,206.4,206.34,39.94]
[1755140461335,12.95517695,206.38,206.34,39.94]
[1755140461515,13.65517695,206.37,206.34,39.94]
[1755140462032,12.95517695,206.35,206.3,50.02]
[1755140462239,12.95517695,206.31,206.3,50.02]
[1755140462422,12.95517695,206.4,206.3,89.94]
[1755140462423,12.95517695,206.32,206.3,89.94]
[1755140463314,22.10862027,206.47,206.3,89.94]
[1755140463315,0.7,206.38,206.3,89.94]
[1755140463618,12.95517695,206.33,206.3,89.94]
[1755140463825,12.95517695,206.32,206.3,89.94]
[1755140464030,13.65517695,206.31,206.3,50.02]
[1755140464413,12.95517695,206.32,206.3,89.94]
[1755140464606,13.65517695,206.37,206.3,90.64]
[1755140464828,12.95517695,206.36,206.3,90.64]
[1755140465037,12.95517695,206.36,206.31,69.64]
[1755140465217,12.95517695,206.35,206.31,69.64]
[1755140465620,12.95517695,206.36,206.31,69.64]
[1755140465925,12.95517695,206.34,206.3,89.94]
[1755140466125,10.0,206.49,206.3,89.94]
[1755140466126,12.95517695,206.31,206.3,50.02]
[1755140466326,12.95517695,206.31,206.3,89.92]
[1755140466647,13.65517695,206.31,206.3,89.92]
[1755140466821,13.65517695,206.31,206.12,421.7]
[1755140466822,18.50238629,206.31,206.15,0.7]
[1755140467017,12.95517695,206.16,206.04,215.37114829]
[1755140467217,12.95517695,206.16,206.12,0.7]
[1755140467435,12.98582766,206.16,206.13,39.9]
[1755140467625,12.98582766,206.15,206.13,39.9]
[1755140468432,12.98582766,206.14,206.13,39.9]
[1755140468652,20.30993549,206.14,206.13,39.9]
[1755140472230,20.30993549,206.14,206.04,0.7]
[1755140472440,19.69993549,206.07,206.05,39.88]
[1755140472963,19.69993549,206.06,206.05,39.88]
[1755140473267,19.69993549,206.11,206.05,40.58]
[1755140473452,19.69993549,206.09,206.05,40.58]
[1755140473641,19.69993549,206.09,206.05,39.88]
[1755140473847,19.69993549,206.09,206.06,0.7]
[1755140474257,19.69993549,206.11,206.07,0.7]
[1755140474452,19.69993549,206.1,206.07,0.7]
[1755140474763,19.69993549,206.1,206.05,39.88]
[1755140474764,0.61,206.29,206.08,0.7]
[1755140475071,19.69993549,206.23,206.14,34.86]
[1755140475239,0.61,206.29,206.15,40.58]
[1755140475437,0.61,206.29,206.16,0.7]
[1755140475637,19.69993549,206.27,206.16,0.7]
[1755140475860,0.61,206.32,206.16,0.7]
[1755140476075,0.61,206.31,206.16,0.7]
[1755140476237,19.69993549,206.26,206.16,0.7]
[1755140476433,0.61,206.31,206.16,0.7]
[1755140476756,19.69993549,206.26,206.16,0.7]
[1755140476958,19.69993549,206.28,206.17,39.86]
[1755140477150,19.69993549,206.28,206.18,0.7]
[1755140477355,19.69993549,206.31,206.18,0.7]
[1755140477656,19.69993549,206.32,206.18,0.7]
[1755140477864,19.69993549,206.36,206.18,0.7]
[1755140478160,19.69993549,206.38,206.18,0.7]
[1755140478553,19.69993549,206.37,206.18,0.7]
[1755140478758,19.69993549,206.37,206.18,4.49032943]
[1755140479167,19.69993549,206.37,206.19,0.7]
[1755140479464,0.61,206.41,206.19,10.7]
[1755140479665,19.69993549,206.38,206.2,0.7]
[1755140479855,10.0,206.49,206.21,39.84]
[1755140479856,0.61,206.43,206.21,39.84]
[1755140480157,19.69993549,206.38,206.22,0.7]
[1755140480368,19.69993549,206.39,206.22,0.7]
[1755140480545,19.69993549,206.4,206.22,0.7]
[1755140480938,0.61,206.46,206.22,0.7]
[1755140481138,19.69993549,206.53,206.22,0.7]
[1755140481351,19.69993549,206.44,206.23,10.0]
[1755140481557,19.69993549,206.43,206.24,10.7]
[1755140481842,10.0,206.59,206.24,10.7]
[1755140481843,19.69993549,206.46,206.25,40.52]
[1755140482037,0.61,206.5,206.28,10.0]
[1755140482237,19.69993549,206.49,206.29,0.7]
[1755140482464,0.61,206.53,206.29,0.7]
[1755140482762,19.69993549,206.48,206.29,0.7]
[1755140482975,19.69993549,206.48,206.3,39.82]
[1755140483186,0.61,206.53,206.31,0.7]
[1755140483472,19.69993549,206.49,206.31,0.7]
[1755140483841,19.69993549,206.42,206.32,39.8]
[1755140484064,19.69993549,206.39,206.33,0.7]
[1755140484245,19.69993549,206.41,206.33,0.7]
[1755140484455,19.69993549,206.43,206.33,0.7]
[1755140484643,19.69993549,206.42,206.33,0.7]
[1755140484840,19.69993549,206.42,206.34,39.8]
[1755140485062,19.69993549,206.36,206.35,109.48]
[1755140485455,0.61,206.42,206.35,109.48]
[1755140485653,19.69993549,206.36,206.35,34.84]
[1755140485863,19.69993549,206.43,206.35,40.48]
[1755140486064,12.10277891,206.57,206.35,40.48]
[1755140486065,10.0,206.58,206.35,39.78]
[1755140486365,19.69993549,206.47,206.36,0.7]
[1755140486569,10.0,206.63,206.36,0.7]
[1755140486755,19.69993549,206.52,206.37,39.78]
[1755140486955,19.69993549,206.52,206.38,0.7]
[1755140487646,19.69993549,206.51,206.38,0.7]
[1755140487846,0.61,206.54,206.38,0.7]
[1755140487847,19.69993549,206.52,206.38,0.7]
[1755140488741,0.61,206.59,206.38,0.7]
[1755140488943,19.69993549,206.59,206.38,0.7]
[1755140489172,4.83866108,206.67,206.38,0.7]
[1755140489478,19.69993549,206.6,206.38,0.7]
[1755140489670,29.69993549,206.72,206.38,0.7]
[1755140489671,19.69993549,206.72,206.38,157.0]
[1755140489847,19.69993549,206.6,206.39,10.7]
[1755140490173,19.69993549,206.61,206.4,0.7]
[1755140490479,19.69993549,206.61,206.4,157.0]
[1755140490657,4.83790512,206.71,206.41,0.67]
[1755140490982,19.69993549,206.62,206.41,156.97]
[1755140491160,19.69993549,206.61,206.42,0.67]
[1755140491366,19.69993549,206.61,206.43,39.74]
[1755140491576,19.69993549,206.59,206.44,0.67]
[1755140491744,19.69993549,206.57,206.44,22.17]
[1755140492073,25.99462091,206.72,206.45,40.39]
[1755140492074,19.69993549,206.6,206.45,40.39]
[1755140492373,19.69993549,206.6,206.46,0.67]
[1755140492863,26.74657288,206.76,206.46,0.67]
[1755140492864,0.58,206.64,206.46,156.97]
[1755140493062,19.69993549,206.61,206.47,0.67]
[1755140493263,0.58,206.64,206.47,0.67]
[1755140493465,19.69993549,206.61,206.48,39.7]
[1755140493773,19.69993549,206.6,206.49,0.67]
[1755140494070,19.69993549,206.58,206.5,39.7]
[1755140494270,19.69993549,206.58,206.51,0.67]
[1755140494458,19.69993549,206.58,206.5,39.7]
[1755140494459,19.69993549,206.55,206.5,39.7]
[1755140494653,19.69993549,206.55,206.5,40.37]
[1755140494872,19.69993549,206.58,206.51,0.67]
[1755140495080,19.69993549,206.58,206.52,69.64]
[1755140495379,19.69993549,206.53,206.52,69.64]
[1755140495563,20.27993549,206.53,206.52,74.52]
[1755140495762,20.27993549,206.53,206.52,39.7]
[1755140495947,20.27993549,206.53,206.44,0.67]
[1755140496149,19.69993549,206.48,206.45,39.68]
[1755140496568,19.69993549,206.46,206.29,211.4]
[1755140496772,19.69993549,206.37,206.3,0.67]
[1755140496972,19.69993549,206.36,206.31,39.68]
[1755140497177,19.69993549,206.37,206.32,0.67]
[1755140498373,19.69993549,206.35,206.31,39.68]
[1755140498558,19.69993549,206.34,206.31,39.68]
[1755140498757,19.69993549,206.34,206.28,0.67]
[1755140498972,19.69993549,206.34,206.29,39.66]
[1755140499171,19.69993549,206.34,206.29,40.33]
[1755140499654,0.58,206.37,206.29,40.33]
[1755140499655,19.69993549,206.35,206.29,40.33]
[1755140499861,19.69993549,206.35,206.3,0.67]
[1755140500056,19.69993549,206.36,206.3,0.67]
[1755140500257,19.69993549,206.38,206.3,0.67]